fUST/lending_fUST_20251130
["ID","MTS","AMOUNT","RATE_DAILY","PERIOD"]
[395124464,1764457852402,-500.0,0.0001452,2]
[395124465,1764457852411,-500.0,0.0001452,2]
[395124466,1764457852421,-500.0,0.0001452,2]
[395124467,1764457852431,-500.0,0.0001452,2]
[395124468,1764457852440,-535.16,0.0001452,2]
[395124469,1764457852450,-6695.46,0.0001452,2]
[395124470,1764457852460,-865.75,0.0001452,2]
[395124471,1764457852471,-580.09,0.0001452,2]
[395124472,1764457852482,-817.45,0.0001452,2]
[395124473,1764457852492,-1292.78,0.0001452,2]
[395124474,1764457852503,-873.36,0.0001452,2]
[395124475,1764457852513,-500.0,0.0001452,2]
[395124476,1764457852523,-1209.38,0.0001452,2]
[395124477,1764457852532,-500.0,0.0001452,2]
[395124478,1764457852544,-500.0,0.0001452,2]
[395124479,1764457852554,-500.0,0.0001452,2]
[395124480,1764457852564,-734.21,0.0001452,2]
[395124481,1764457852574,-755.89,0.0001452,2]
[395124482,1764457852585,-500.0,0.0001452,2]
[395124483,1764457852595,-500.0,0.0001452,2]
[395124484,1764457852604,-500.0,0.0001452,2]
[395124485,1764457852614,-500.0,0.0001452,2]
[395124486,1764457852624,-533.45,0.0001452,2]
[395124487,1764457852635,-1494.54,0.0001452,2]
[395124488,1764457852645,-848.59,0.0001452,2]
[395124489,1764457852657,-500.0,0.0001452,2]
[395124490,1764457852666,-764.51,0.0001452,2]
[395124491,1764457852676,-500.0,0.0001452,2]
[395124492,1764457852686,-500.0,0.0001452,2]
[395124493,1764457852696,-4944.42,0.0001452,2]
[395124494,1764457852706,-689.25,0.0001452,2]
[395124495,1764457852717,-2304.82,0.0001452,2]
[395124496,1764457852728,-490.07056064,0.0001452,2]
[395124497,1764457852738,-965.61,0.0001452,2]
[395124498,1764457852748,-1164.8,0.0001452,2]
[395124499,1764457852758,-589.98,0.0001452,2]
[395124500,1764457852768,-1153.22,0.0001452,2]
[395124501,1764457852778,-718.2,0.0001452,2]
[395124502,1764457852787,-500.0,0.0001452,2]
[395124503,1764457852797,-500.0,0.0001452,2]
[395124504,1764457852807,-500.0,0.0001452,2]
[395124505,1764457852816,-500.0,0.0001452,2]
[395124506,1764457852827,-1185.3,0.0001452,2]
[395124507,1764457852838,-500.0,0.0001452,2]
[395124508,1764457852848,-903.13,0.0001452,2]
[395124509,1764457852859,-3016.6,0.0001452,2]
[395124510,1764457852869,-3922.74,0.0001452,2]
[395124511,1764457852879,-500.0,0.0001452,2]
[395124512,1764457852891,-500.0,0.0001452,2]
[395124513,1764457852902,-920.8,0.0001452,2]
[395124514,1764457852912,-541.39,0.0001452,2]
[395124515,1764457852923,-312.2135137,0.0001452,2]
[395124516,1764457852932,-732.38,0.0001452,2]
[395124517,1764457852942,-500.0,0.0001452,2]
[395124518,1764457852951,-4798.84,0.0001452,2]
[395124519,1764457852961,-782.54,0.0001452,2]
[395124520,1764457852971,-500.0,0.0001452,2]
[395124521,1764457852980,-3409.56,0.0001452,2]
[395124522,1764457852991,-500.0,0.0001452,2]
[395124523,1764457853003,-380.14489482,0.0001452,2]
[395124524,1764457853593,39.56442847,8.907e-05,2]
[395124525,1764457853790,230.29103297,8.907e-05,2]
[395124526,1764457854008,-2e-08,0.00010534,2]
[395124527,1764457854020,-499.99999998,0.00010534,2]
[395124528,1764457854030,-809.22317,0.00010959,2]
[395124529,1764457854040,-809.22317,0.00010959,2]
[395124530,1764457854052,-275.315413,0.00010959,2]
[395124531,1764457854064,-809.22317,0.00010959,2]
[395124532,1764457854074,-809.22317,0.00010959,2]
[395124533,1764457854084,-809.22317,0.00011539,2]
[395124534,1764457854095,-809.22317,0.000125,2]
[395124535,1764457854105,-116.7147435,0.00013473,2]
[395124536,1764457854244,-149.89100328,0.00010959,2]
[395124537,1764457854675,-269.85546144,0.00010674,2]
[395124538,1764457854684,-535.37072538,0.00010959,2]
[395124539,1764457854849,-123.96144134,0.00010959,2]
[395124540,1764457854858,-809.22317,0.00010959,2]
[395124541,1764457854867,-657.85839647,0.00010959,2]
[395124542,1764457855050,-151.36477353,0.00010959,2]
[395124543,1764457855061,-143.77409131,0.00010959,2]
[395124544,1764457855073,-665.44907869,0.00010959,2]
[395124545,1764457855083,-809.22317,0.00010959,2]
[395124546,1764457855092,-809.22317,0.00010959,2]
[395124547,1764457855102,-809.22317,0.00010959,2]
[395124548,1764457855112,-809.22317,0.00010959,2]
[395124549,1764457855123,-809.22317,0.00011539,2]
[395124550,1764457855132,-809.22317,0.00011539,2]
[395124551,1764457855141,-809.22317,0.00011539,2]
[395124552,1764457855151,-270.1253169,0.00012442,2]
[395124553,1764457855160,-809.22317,0.000125,2]
[395124554,1764457855169,-809.22317,0.000125,2]
[395124555,1764457855179,-809.223179,0.000125,2]
[395124556,1764457855188,-2051.23486464,0.00013473,2]
[395124557,1764457855199,-320.74051982,0.00014365,2]
[395124558,1764457855208,-119.85510518,0.0001452,2]
[395124559,1764457855218,-500.0,0.0001452,2]
[395124560,1764457855227,-500.0,0.0001452,2]
[395124561,1764457855235,-500.0,0.0001452,2]
[395124562,1764457855245,-500.0,0.0001452,2]
[395124563,1764457855255,-3218.89,0.0001452,2]
[395124564,1764457855266,-500.0,0.0001452,2]
[395124565,1764457855276,-1012.26,0.0001452,2]
[395124566,1764457855286,-570.72,0.0001452,2]
[395124567,1764457855296,-2206.08,0.0001452,2]
[395124568,1764457855306,-700.13,0.0001452,2]
[395124569,1764457855317,-1890.18,0.0001452,2]
[395124570,1764457855327,-3305.38,0.0001452,2]
[395124571,1764457855336,-500.0,0.0001452,2]
[395124572,1764457855346,-500.0,0.0001452,2]
[395124573,1764457855358,-2232.18,0.0001452,2]
[395124574,1764457855368,-500.0,0.0001452,2]
[395124575,1764457855378,-518.6,0.0001452,2]
[395124576,1764457855387,-500.0,0.0001452,2]
[395124577,1764457855398,-500.0,0.0001452,2]
[395124578,1764457855408,-1055.79,0.0001452,2]
[395124579,1764457855417,-3044.49,0.0001452,2]
[395124580,1764457855426,-500.0,0.0001452,2]
[395124581,1764457855435,-804.44,0.0001452,2]
[395124582,1764457855445,-500.0,0.0001452,2]
[395124583,1764457855454,-500.0,0.0001452,2]
[395124584,1764457855463,-500.0,0.0001452,2]
[395124585,1764457855472,-500.0,0.0001452,2]
[395124586,1764457855482,-1243.28,0.0001452,2]
[395124587,1764457855491,-2470.37,0.0001452,2]
[395124588,1764457855500,-500.0,0.0001452,2]
[395124589,1764457855510,-500.0,0.0001452,2]
[395124590,1764457855520,-795.94,0.0001452,2]
[395124591,1764457855530,-500.0,0.0001452,2]
[395124592,1764457855540,-913.9,0.0001452,2]
[395124593,1764457855550,-2465.25,0.0001452,2]
[395124594,1764457855559,-500.0,0.0001452,2]
[395124595,1764457855571,-5466.41,0.0001452,2]
[395124596,1764457855582,-500.0,0.0001452,2]
[395124597,1764457855592,-600.0,0.0001452,2]
[395124598,1764457855601,-629.56,0.0001452,2]
[395124599,1764457855611,-322.76184311,0.0001452,2]
[395124600,1764457855620,-500.0,0.0001452,2]
[395124601,1764457855630,-500.0,0.0001452,2]
[395124602,1764457855639,-500.0,0.0001452,2]
[395124603,1764457855649,-3091.62,0.0001452,2]
[395124604,1764457855659,-521.54,0.0001452,2]
[395124605,1764457855668,-2062.69,0.0001452,2]
[395124606,1764457855677,-500.0,0.0001452,2]
[395124607,1764457855803,-500.66735227,0.0001452,2]
[395124608,1764457855813,-230.37606617,0.0001452,2]
[395124609,1764457855822,-931.8,0.0001452,2]
[395124610,1764457855832,-942.64,0.0001452,2]
[395124611,1764457855842,-500.0,0.0001452,2]
[395124612,1764457855851,-301.29333178,0.0001452,2]
[395124613,1764457855860,-500.0,0.0001452,2]
[395124614,1764457855870,-533.99,0.0001452,2]
[395124615,1764457855879,-500.0,0.0001452,2]
[395124616,1764457855888,-620.19,0.0001452,2]
[395124617,1764457855898,-500.0,0.0001452,2]
[395124618,1764457855908,-500.0,0.00014521,2]
[395124619,1764457855917,-600.0,0.00014525,2]
[395124620,1764457855926,-500.0,0.00014538,2]
[395124621,1764457855936,-990.0,0.00014539,2]
[395124622,1764457855946,-630.0,0.00014539,2]
[395124623,1764457855956,-2153.0,0.00014539,2]
[395124624,1764457855965,-500.0,0.00014548,2]
[395124625,1764457855976,-500.0,0.00014573,2]
[395124626,1764457855986,-500.0,0.00014575,2]
[395124627,1764457855995,-500.0,0.00014584,2]
[395124628,1764457856004,-500.0,0.00014594,2]
[395124629,1764457856014,-160.0,0.00014628,2]
[395124630,1764457856024,-353.63036686,0.00014628,2]
[395124631,1764457856034,-150.0,0.00014647,2]
[395124632,1764457856044,-150.0,0.00014647,2]
[395124633,1764457856057,-150.0,0.00014647,2]
[395124634,1764457856068,-600.0,0.00014665,2]
[395124635,1764457856077,-2000.0,0.000147,2]
[395124636,1764457856088,-190.0,0.00014727,2]
[395124637,1764457856098,-100000.0,0.00014736,2]
[395124638,1764457856108,-500.0,0.00014745,2]
[395124639,1764457856118,-500.0,0.00014747,2]
[395124640,1764457856128,-500.0,0.0001476,2]
[395124641,1764457856138,-900.0,0.00014768,2]
[395124642,1764457856148,-1053.92,0.00014794,2]
[395124643,1764457856157,-500.0,0.00014794,2]
[395124644,1764457856167,-500.0,0.00014794,2]
[395124645,1764457856177,-500.0,0.00014794,2]
[395124646,1764457856186,-500.0,0.00014794,2]
[395124647,1764457856196,-500.0,0.00014794,2]
[395124648,1764457856205,-500.0,0.00014794,2]
[395124649,1764457856215,-1141.18,0.00014794,2]
[395124650,1764457856225,-500.0,0.00014794,2]
[395124651,1764457856235,-500.0,0.00014794,2]
[395124652,1764457856244,-500.0,0.00014794,2]
[395124653,1764457856254,-500.0,0.00014794,2]
[395124654,1764457856263,-500.0,0.00014794,2]
[395124655,1764457856272,-536.33,0.00014794,2]
[395124656,1764457856282,-500.0,0.00014794,2]
[395124657,1764457856291,-500.0,0.00014794,2]
[395124658,1764457856300,-500.0,0.00014794,2]
[395124659,1764457856309,-500.0,0.00014794,2]
[395124660,1764457856319,-500.0,0.00014794,2]
[395124661,1764457856328,-500.0,0.00014794,2]
[395124662,1764457856338,-595.61,0.00014794,2]
[395124663,1764457856347,-350.19203748,0.00014794,2]
[395124664,1764457856357,-500.0,0.00014794,2]
[395124665,1764457856366,-500.0,0.00014794,2]
[395124666,1764457856376,-1515.22,0.00014794,2]
[395124667,1764457856385,-657.86,0.00014794,2]
[395124668,1764457856395,-500.0,0.00014794,2]
[395124669,1764457856403,-500.0,0.00014794,2]
[395124670,1764457856413,-500.0,0.00014794,2]
[395124671,1764457856422,-500.0,0.00014794,2]
[395124672,1764457856431,-500.0,0.00014794,2]
[395124673,1764457856440,-500.0,0.00014794,2]
[395124674,1764457856450,-500.0,0.00014794,2]
[395124675,1764457856460,-984.18,0.00014794,2]
[395124676,1764457856470,-500.0,0.00014794,2]
[395124677,1764457856479,-500.0,0.00014794,2]
[395124678,1764457856488,-500.0,0.00014794,2]
[395124679,1764457856498,-500.0,0.00014794,2]
[395124680,1764457856508,-500.0,0.00014794,2]
[395124681,1764457856517,-500.0,0.00014794,2]
[395124682,1764457856526,-500.0,0.00014794,2]
[395124683,1764457856535,-367.046293,0.00014794,2]
[395124684,1764457856544,-500.0,0.00014794,2]
[395124685,1764457856555,-800.17,0.00014794,2]
[395124686,1764457856564,-500.0,0.00014794,2]
[395124687,1764457856573,-500.0,0.00014794,2]
[395124688,1764457856583,-500.0,0.00014794,2]
[395124689,1764457856592,-985.22,0.00014794,2]
[395124690,1764457856602,-791.05,0.00014794,2]
[395124691,1764457856611,-500.0,0.00014794,2]
[395124692,1764457856620,-500.0,0.00014794,2]
[395124693,1764457856629,-341.66484922,0.00014794,2]
[395124694,1764457856639,-500.0,0.00014794,2]
[395124695,1764457856648,-621.6,0.00014794,2]
[395124696,1764457856657,-500.0,0.00014794,2]
[395124697,1764457856666,-500.0,0.00014794,2]
[395124698,1764457856675,-500.0,0.00014794,2]
[395124699,1764457856685,-500.0,0.00014794,2]
[395124700,1764457856694,-500.0,0.00014794,2]
[395124701,1764457856704,-500.0,0.00014794,2]
[395124702,1764457856713,-500.0,0.00014794,2]
[395124703,1764457856722,-517.66591582,0.00014794,2]
[395124704,1764457856732,-500.0,0.00014794,2]
[395124705,1764457856741,-500.0,0.00014794,2]
[395124706,1764457856750,-500.0,0.00014794,2]
[395124707,1764457856760,-500.0,0.00014794,2]
[395124708,1764457856770,-500.0,0.00014794,2]
[395124709,1764457856779,-500.0,0.00014794,2]
[395124710,1764457856789,-500.0,0.00014794,2]
[395124711,1764457856799,-500.0,0.00014794,2]
[395124712,1764457856808,-4337.2,0.00014794,2]
[395124713,1764457856819,-500.0,0.00014794,2]
[395124714,1764457856829,-2376.2,0.00014794,2]
[395124715,1764457856839,-500.0,0.00014794,2]
[395124716,1764457856855,-864.18,0.00014794,2]
[395124717,1764457856872,-549.63,0.00014794,2]
[395124718,1764457856887,-500.0,0.00014794,2]
[395124719,1764457856903,-500.0,0.00014794,2]
[395124720,1764457856918,-500.0,0.00014794,2]
[395124721,1764457856934,-6695.46,0.00014794,2]
[395124722,1764457856949,-865.75,0.00014794,2]
[395124723,1764457856966,-580.09,0.00014794,2]
[395124724,1764457856980,-817.45,0.00014794,2]
[395124725,1764457856994,-1292.78,0.00014794,2]
[395124726,1764457857008,-873.36,0.00014794,2]
[395124727,1764457857024,-500.0,0.00014794,2]
[395124728,1764457857039,-1209.38,0.00014794,2]
[395124729,1764457857051,-500.0,0.00014794,2]
[395124730,1764457857065,-500.0,0.00014794,2]
[395124731,1764457857081,-500.0,0.00014794,2]
[395124732,1764457857096,-734.21,0.00014794,2]
[395124733,1764457857112,-755.89,0.00014794,2]
[395124734,1764457857127,-500.0,0.00014794,2]
[395124735,1764457857144,-500.0,0.00014794,2]
[395124736,1764457857155,-500.0,0.00014794,2]
[395124737,1764457857167,-390.0433081,0.00014794,2]
[395124738,1764457857184,-533.45,0.00014794,2]
[395124739,1764457857198,-1494.54,0.00014794,2]
[395124740,1764457857210,-848.59,0.00014794,2]
[395124741,1764457857223,-500.0,0.00014794,2]
[395124742,1764457857238,-764.51,0.00014794,2]
[395124743,1764457857250,-500.0,0.00014794,2]
[395124744,1764457857261,-500.0,0.00014794,2]
[395124745,1764457857274,-4944.42,0.00014794,2]
[395124746,1764457857287,-689.25,0.00014794,2]
[395124747,1764457857300,-2304.82,0.00014794,2]
[395124748,1764457857314,-965.61,0.00014794,2]
[395124749,1764457857327,-1164.8,0.00014794,2]
[395124750,1764457857339,-589.98,0.00014794,2]
[395124751,1764457857351,-1153.22,0.00014794,2]
[395124752,1764457857364,-718.2,0.00014794,2]
[395124753,1764457857376,-500.0,0.00014794,2]
[395124754,1764457857389,-500.0,0.00014794,2]
[395124755,1764457857401,-500.0,0.00014794,2]
[395124756,1764457857413,-500.0,0.00014794,2]
[395124757,1764457857425,-1185.3,0.00014794,2]
[395124758,1764457857437,-500.0,0.00014794,2]
[395124759,1764457857449,-903.13,0.00014794,2]
[395124760,1764457857461,-3016.6,0.00014794,2]
[395124761,1764457857473,-3922.74,0.00014794,2]
[395124762,1764457857486,-567.87685238,0.00014794,2]
[395124763,1764457857498,-500.0,0.00014794,2]
[395124764,1764457857511,-920.8,0.00014794,2]
[395124765,1764457857523,-541.39,0.00014794,2]
[395124766,1764457857536,-732.38,0.00014794,2]
[395124767,1764457857548,-500.0,0.00014794,2]
[395124768,1764457857561,-4798.84,0.00014794,2]
[395124769,1764457857573,-782.54,0.00014794,2]
[395124770,1764457857585,-500.0,0.00014794,2]
[395124771,1764457857597,-3409.56,0.00014794,2]
[395124772,1764457857609,-500.0,0.00014794,2]
[395124773,1764457857621,-500.0,0.00014794,2]
[395124774,1764457857633,-500.0,0.00014794,2]
[395124775,1764457857646,-500.0,0.00014794,2]
[395124776,1764457857659,-500.0,0.00014794,2]
[395124777,1764457857671,-500.0,0.00014794,2]
[395124778,1764457857684,-3218.89,0.00014794,2]
[395124779,1764457857697,-579.8,0.00014794,2]
[395124780,1764457857709,-1012.26,0.00014794,2]
[395124781,1764457857723,-570.72,0.00014794,2]
[395124782,1764457857736,-2206.08,0.00014794,2]
[395124783,1764457857749,-700.13,0.00014794,2]
[395124784,1764457857762,-1890.18,0.00014794,2]
[395124785,1764457857775,-3305.38,0.00014794,2]
[395124786,1764457857787,-414.29714174,0.00014794,2]
[395124787,1764457857798,-500.0,0.00014794,2]
[395124788,1764457857808,-2232.18,0.00014794,2]
[395124789,1764457857818,-500.0,0.00014794,2]
[395124790,1764457857828,-518.6,0.00014794,2]
[395124791,1764457857837,-500.0,0.00014794,2]
[395124792,1764457857847,-500.0,0.00014794,2]
[395124793,1764457857857,-1055.79,0.00014794,2]
[395124794,1764457857867,-3044.49,0.00014794,2]
[395124795,1764457857876,-500.0,0.00014794,2]
[395124796,1764457857885,-804.44,0.00014794,2]
[395124797,1764457857894,-500.0,0.00014794,2]
[395124798,1764457857905,-500.0,0.00014794,2]
[395124799,1764457857915,-500.0,0.00014794,2]
[395124800,1764457857925,-500.0,0.00014794,2]
[395124801,1764457857935,-1243.28,0.00014794,2]
[395124802,1764457857944,-2470.37,0.00014794,2]
[395124803,1764457857954,-500.0,0.00014794,2]
[395124804,1764457857964,-500.0,0.00014794,2]
[395124805,1764457857974,-795.94,0.00014794,2]
[395124806,1764457857984,-500.0,0.00014794,2]
[395124807,1764457857994,-913.9,0.00014794,2]
[395124808,1764457858004,-2465.25,0.00014794,2]
[395124809,1764457858014,-318.31228367,0.00014794,2]
[395124810,1764457858023,-5466.41,0.00014794,2]
[395124811,1764457858033,-500.0,0.00014794,2]
[395124812,1764457858043,-629.56,0.00014794,2]
[395124813,1764457858056,-500.0,0.00014794,2]
[395124814,1764457858065,-500.0,0.00014794,2]
[395124815,1764457858075,-500.0,0.00014794,2]
[395124816,1764457858084,-3091.62,0.00014794,2]
[395124817,1764457858095,-521.54,0.00014794,2]
[395124818,1764457858105,-2062.69,0.00014794,2]
[395124819,1764457858115,-500.0,0.00014794,2]
[395124820,1764457858125,-931.8,0.00014794,2]
[395124821,1764457858136,-942.64,0.00014794,2]
[395124822,1764457858375,-500.0,0.00014794,2]
[395124823,1764457858412,-500.0,0.00014794,2]
[395124824,1764457858429,-533.99,0.00014794,2]
[395124825,1764457858442,-500.0,0.00014794,2]
[395124826,1764457858452,-620.19,0.00014794,2]
[395124827,1764457858462,-500.0,0.00014794,2]
[395124828,1764457858471,-500.0,0.00014795,2]
[395124829,1764457858481,-1500.0,0.00014795,2]
[395124830,1764457858490,-1500.0,0.00014795,2]
[395124831,1764457858499,-1500.0,0.00014795,2]
[395124832,1764457858508,-183.23149464,0.00014795,2]
[395124833,1764457858518,-1500.0,0.00014795,2]
[395124834,1764457858527,-1500.0,0.00014795,2]
[395124835,1764457858536,-1500.0,0.00014795,2]
[395124836,1764457858546,-1500.0,0.00014795,2]
[395124837,1764457858555,-1500.0,0.00014795,2]
[395124838,1764457858564,-1500.0,0.00014795,2]
[395124839,1764457858573,-1500.0,0.00014795,2]
[395124840,1764457858583,-485.32289832,0.00014795,2]
[395124841,1764457858592,-1500.0,0.00014795,2]
[395124842,1764457858602,-1500.0,0.00014795,2]
[395124843,1764457858611,-1500.0,0.00014795,2]
[395124844,1764457858620,-1500.0,0.00014795,2]
[395124845,1764457858629,-1500.0,0.00014795,2]
[395124846,1764457858638,-1155.69911988,0.00014795,2]
[395124847,1764457858647,-1500.0,0.00014795,2]
[395124848,1764457858656,-1500.0,0.00014795,2]
[395124849,1764457858665,-1500.0,0.00014795,2]
[395124850,1764457858675,-1500.0,0.00014795,2]
[395124851,1764457858684,-1500.0,0.00014795,2]
[395124852,1764457858694,-1500.0,0.00014795,2]
[395124853,1764457858703,-1396.8418006,0.00014795,2]
[395124854,1764457858714,-1500.0,0.00014795,2]
[395124855,1764457858723,-5000.0,0.00014795,2]
[395124856,1764457858732,-600.0,0.0001481,2]
[395124857,1764457858742,-500.0,0.00014815,2]
[395124858,1764457858751,-160.0,0.00014826,2]
[395124859,1764457858760,-500.0,0.0001483,2]
[395124860,1764457858770,-592.0522105,0.000149,2]
[395124861,1764457858779,-452.17685801,0.000149,2]
[395124862,1764457858788,-452.17685801,0.000149,2]
[395124863,1764457858797,-452.17685801,0.000149,2]
[395124864,1764457858806,-600.0,0.00014912,2]
[395124865,1764457858815,-332.60791905,0.00014913,2]
[395124866,1764457858824,-2000.0,0.00014916,2]
[395124867,1764457858833,-2000.0,0.00014916,2]
[395124868,1764457858842,-2000.0,0.00014916,2]
[395124869,1764457858851,-314.81678627,0.00014916,2]
[395124870,1764457858860,-2000.0,0.00014916,2]
[395124871,1764457858870,-1203.53228079,0.00014916,2]
[395124872,1764457858880,-2000.0,0.00014916,2]
[395124873,1764457858889,-2000.0,0.00014916,2]
[395124874,1764457858898,-1517.3305073,0.00014916,2]
[395124875,1764457858907,-2000.0,0.00014916,2]
[395124876,1764457858917,-2000.0,0.00014916,2]
[395124877,1764457858926,-600.0,0.00014933,2]
[395124878,1764457858936,-500.0,0.00014953,2]
[395124879,1764457858946,-600.0,0.00014956,2]
[395124880,1764457858956,-1000.0,0.00014984,2]
[395124881,1764457858966,-22952.57843499,0.00015,2]
[395124882,1764457858976,-4057.80041,0.00015,2]
[395124883,1764457858986,-1013.92638892,0.00015,2]
[395124884,1764457858995,-375.57016718,0.00015,2]
[395124885,1764457859004,-750.0,0.00015,2]
[395124886,1764457859014,-500.0,0.00015013,2]
[395124887,1764457859024,-500.0,0.00015019,2]
[395124888,1764457859034,-1053.92,0.00015068,2]
[395124889,1764457859043,-500.0,0.00015068,2]
[395124890,1764457859057,-500.0,0.00015068,2]
[395124891,1764457859067,-500.0,0.00015068,2]
[395124892,1764457859076,-466.13813448,0.00015068,2]
[395124893,1764457859085,-500.0,0.00015068,2]
[395124894,1764457859095,-500.0,0.00015068,2]
[395124895,1764457859104,-1141.18,0.00015068,2]
[395124896,1764457859114,-372.54017378,0.00015068,2]
[395124897,1764457859124,-500.0,0.00015068,2]
[395124898,1764457859133,-500.0,0.00015068,2]
[395124899,1764457859143,-500.0,0.00015068,2]
[395124900,1764457859152,-500.0,0.00015068,2]
[395124901,1764457859161,-500.0,0.00015068,2]
[395124902,1764457859171,-500.0,0.00015068,2]
[395124903,1764457859180,-500.0,0.00015068,2]
[395124904,1764457859189,-500.0,0.00015068,2]
[395124905,1764457859199,-500.0,0.00015068,2]
[395124906,1764457859208,-500.0,0.00015068,2]
[395124907,1764457859217,-595.61,0.00015068,2]
[395124908,1764457859230,-500.0,0.00015068,2]
[395124909,1764457859239,-500.0,0.00015068,2]
[395124910,1764457859248,-491.46402447,0.00015068,2]
[395124911,1764457860273,269.85546144,8.818e-05,2]
[395124912,1764457861321,284.21624955,8.907e-05,2]
[395124913,1764457861529,284.21624955,9.791e-05,2]
[395124914,1764457866483,437.69630243,8.907e-05,2]
[395124915,1764457875137,918.45074996,8.907e-05,2]
[395124916,1764457881174,232.44705648,8.907e-05,2]
[395124917,1764457897619,568.20163608,8.907e-05,2]
[395124918,1764457905626,438.26434214,8.907e-05,2]
[395124919,1764457926769,6336.3709194,9.709e-05,2]
[395124920,1764457926790,22803.63120757,9.709e-05,2]
[395124921,1764457933898,-9807.41151469,9.709e-05,2]
[395124922,1764457938618,329.47906842,8.907e-05,2]
[395124923,1764457951117,827.63461908,8.907e-05,2]
[395124932,1764457982167,156.19,1e-05,2]
[395124933,1764457982456,156.19,1.2e-05,2]
[395124934,1764457982862,156.19,1.3e-05,2]
[395124935,1764457983196,45.3163125,1.5e-05,2]
[395124936,1764457983218,110.8736875,1.5e-05,2]
[395124937,1764457983554,156.19,1.7e-05,2]
[395124938,1764457983901,156.19,1.8e-05,2]
[395124939,1764457984280,156.19,2e-05,2]
[395124940,1764457984573,156.19,2.2e-05,2]
[395124941,1764457984858,156.19,2.3e-05,2]
[395124942,1764457985192,156.19,2.5e-05,2]
[395124943,1764457985699,156.19,2.7e-05,2]
[395124944,1764457985968,156.19,2.8e-05,2]
[395124945,1764457986094,156.19,3e-05,2]
[395124980,1764458126726,-1644.3181013,9.421e-05,2]
[395124981,1764458129457,1644.3181013,9.421e-05,2]
[395124982,1764458137494,1644.3181013,9.421e-05,2]
[395124983,1764458142216,-1644.3181013,9.516e-05,2]
[395124986,1764458157916,-424.16117746,9.564e-05,2]
[395124987,1764458160378,424.16117746,9.468e-05,2]
[395124997,1764458173648,-424.16117746,9.66e-05,2]
[395124998,1764458173697,164.8208306,9.486e-05,2]
[395124999,1764458175673,424.16117746,9.564e-05,2]
[395125000,1764458183396,631.61271784,9.612e-05,2]
[395125002,1764458187272,1552.13884905,8.907e-05,2]
[395125003,1764458187878,1552.13884905,9.417e-05,2]
[395125006,1764458199578,5541.75621358,9.612e-05,2]
[395125007,1764458344631,-6668.84030474,9.709e-05,2]
[395125008,1764458344654,-1552.13884905,9.926e-05,2]
[395125009,1764458344676,-300.0,0.00010431,2]
[395125010,1764458344697,-172.11179725,0.00010432,2]
[395125011,1764458344719,-500.0,0.00010432,2]
[395125012,1764458344741,-500.0,0.00010432,2]
[395125013,1764458344764,-500.0,0.00010432,2]
[395125014,1764458344786,-500.0,0.00010432,2]
[395125015,1764458344809,-500.0,0.00010432,2]
[395125016,1764458344830,-500.0,0.00010432,2]
[395125017,1764458344852,-500.0,0.00010432,2]
[395125018,1764458344875,-500.0,0.00010432,2]
[395125019,1764458344897,-500.0,0.00010432,2]